bitfinex/quotes_SOLUSD_20250525
["timestamp","ask_amount","ask_price","bid_price","bid_amount"]
[1748158628496,26.0,172.17,172.15,121.72]
[1748158628715,26.0,172.17,172.14,56.39777461]
[1748158629570,47.61777461,172.19,172.14,56.39777461]
[1748158630931,47.61777461,172.19,172.14,34.78]
[1748158631799,21.61777461,172.18,172.14,34.78]
[1748158632023,26.0,172.15,172.14,34.78]
[1748158633006,21.61777461,172.16,172.14,34.78]
[1748158633199,21.61777461,172.15,172.09,21.61777461]
[1748158633409,21.61777461,172.15,172.1,34.78]
[1748158634126,26.0,172.11,172.07,82.9]
[1748158634318,26.0,172.11,172.08,56.39777461]
[1748158635712,26.0,172.11,172.09,21.61777461]
[1748158636112,26.0,172.12,172.09,21.61777461]
[1748158637537,26.0,172.12,172.1,121.72]
[1748158637736,26.0,172.11,172.1,121.72]
[1748158637941,26.0,172.11,172.1,156.5]
[1748158639422,26.0,172.11,172.1,38.26]
[1748158639731,26.0,172.11,172.1,34.78]
[1748158640225,21.61777461,172.12,172.1,34.78]
[1748158643046,26.0,172.15,172.1,34.78]
[1748158643336,26.0,172.11,172.1,34.78]
[1748158644435,26.0,172.15,172.1,34.78]
[1748158644742,26.0,172.11,172.1,34.78]
[1748158645835,26.0,172.15,172.1,34.78]
[1748158646032,26.0,172.11,172.1,34.78]
[1748158647539,26.0,172.11,172.1,156.52]
[1748158647834,21.61777461,172.14,172.1,156.52]
[1748158648134,26.0,172.11,172.1,156.52]
[1748158648521,26.0,172.11,172.1,73.04]
[1748158649746,26.0,172.15,172.1,73.04]
[1748158650044,26.0,172.11,172.1,34.78]
[1748158652852,26.0,172.1,172.03,82.9]
[1748158653040,26.0,172.1,172.05,21.61777461]
[1748158653041,47.61777461,172.1,172.05,21.61777461]
[1748158653425,47.61777461,172.1,172.04,21.61777461]
[1748158653945,47.61777461,172.1,172.05,34.78]
[1748158656346,26.0,172.1,172.05,56.39777461]
[1748158656549,26.0,172.1,172.06,21.61777461]
[1748158656855,47.61777461,172.1,172.05,56.39777461]
[1748158657025,47.61777461,172.1,172.06,21.61777461]
[1748158657026,26.0,172.1,172.06,21.61777461]
[1748158657549,26.0,172.1,172.07,121.7]
[1748158657759,26.0,172.1,172.08,34.78]
[1748158658750,26.0,172.1,172.07,121.7]
[1748158658960,26.0,172.1,172.08,34.78]
[1748158659947,21.61777461,172.14,172.09,21.61777461]
[1748158660128,21.61777461,172.15,172.1,21.61777461]
[1748158660320,26.0,172.12,172.11,34.78]
[1748158662324,7.6145,172.17,172.11,34.78]
[1748158662325,47.61777461,172.14,172.11,34.78]
[1748158662534,26.0,172.14,172.11,34.78]
[1748158662734,47.61777461,172.14,172.11,34.78]
[1748158663151,26.0,172.14,172.11,34.78]
[1748158663327,1.5135,172.17,172.13,21.61777461]
[1748158663533,1.5135,172.17,172.14,34.78]
[1748158663742,26.0,172.15,172.14,34.78]
[1748158664247,23.13127461,172.17,172.14,34.78]
[1748158664428,26.0,172.15,172.14,34.78]
[1748158664754,54.30783618,172.15,172.14,34.78]
[1748158665123,0.14216157,172.14,172.06,21.61777461]
[1748158665322,0.14216157,172.14,172.03,1.6188]
[1748158665323,26.0,172.08,172.07,34.78]
[1748158665557,47.61777461,172.12,172.07,34.78]
[1748158666852,26.0,172.08,172.07,34.78]
[1748158667652,26.0,172.08,172.07,156.48]
[1748158667857,47.61777461,172.12,172.07,156.48]
[1748158668030,26.0,172.08,172.07,156.48]
[1748158668455,47.61777461,172.12,172.07,156.48]
[1748158668634,47.61777461,172.12,172.07,34.78]
[1748158670058,21.61777461,172.09,172.07,34.78]
[1748158670437,26.0,172.06,172.03,21.61777461]
[1748158670655,26.0,172.06,172.04,56.39777461]
[1748158671226,26.0,172.07,172.04,21.61777461]
[1748158671430,26.0,172.07,172.05,34.78]
[1748158672151,26.0,172.1,172.05,34.78]
[1748158672347,26.0,172.06,172.05,34.78]
[1748158673752,26.0,172.06,172.0,0.06112856]
[1748158674056,21.61777461,172.07,172.01,56.39777461]
[1748158674356,26.0,172.1,172.01,34.78]
[1748158674541,1.72046157,172.11,172.01,34.78]
[1748158674542,26.0,172.05,172.02,21.61777461]
[1748158675536,21.61777461,172.07,172.03,34.78]
[1748158677558,21.61777461,172.07,172.04,121.72]
[1748158677856,21.61777461,172.07,172.04,38.24]
[1748158678452,26.0,172.05,172.04,38.24]
[1748158680633,26.0,172.05,172.03,56.39777461]
[1748158681055,26.0,172.05,172.03,34.78]
[1748158682164,26.0,172.03,172.01,21.61777461]
[1748158682351,26.0,172.03,172.02,34.8]
[1748158683543,47.61777461,172.05,172.0,21.67890317]
[1748158683853,47.61777461,172.05,172.01,34.8]
[1748158684561,47.61777461,172.05,172.0,21.67890317]
[1748158684762,47.61777461,172.05,172.01,34.8]
[1748158685264,26.0,172.03,172.01,56.41777461]
[1748158687436,26.0,172.03,172.02,83.5]
[1748158687643,26.0,172.03,172.02,121.68]
[1748158687842,26.0,172.04,172.02,143.29777461]
[1748158688054,26.0,172.04,172.02,59.79777461]
[1748158689362,26.0,172.04,172.02,38.18]
[1748158689868,26.0,172.03,172.02,38.18]
[1748158692056,26.0,172.03,172.01,56.41777461]
[1748158694869,1.72046157,172.11,172.01,56.41777461]
[1748158694870,1.5974,172.15,172.02,21.61777461]
[1748158695176,26.0,172.1,172.08,21.61777461]
[1748158695353,26.0,172.08,172.06,21.61777461]
[1748158695546,26.0,172.08,172.07,34.8]
[1748158696466,21.61777461,172.11,172.07,34.8]
[1748158697446,26.0,172.09,172.08,121.68]
[1748158699975,21.61777461,172.11,172.08,121.68]
[1748158699976,26.0,172.12,172.08,121.68]
[1748158700158,47.61777461,172.11,172.08,38.18]
[1748158700351,26.0,172.11,172.07,34.8]
[1748158700650,47.61777461,172.11,172.07,34.8]
[1748158701671,26.0,172.07,172.05,21.61777461]
[1748158701976,26.0,172.07,172.06,34.8]
[1748158702965,26.0,172.05,172.03,21.61777461]
[1748158703275,26.0,172.05,172.04,34.8]
[1748158704255,21.61777461,172.05,172.04,34.8]
[1748158704676,26.0,172.07,172.04,34.8]
[1748158704864,21.61777461,172.06,172.04,34.8]
[1748158707474,21.61777461,172.06,172.05,121.68]
[1748158711282,21.61777461,172.06,172.05,38.18]
[1748158713195,21.61777461,172.06,172.04,34.8]
[1748158717498,21.61777461,172.06,172.05,121.68]
[1748158723102,21.61777461,172.06,172.04,34.8]
[1748158723290,21.61777461,172.05,172.04,34.8]
[1748158723881,26.0,172.02,172.0,0.06112856]
[1748158724194,1.583,172.09,172.0,0.06112856]
[1748158724195,21.61777461,172.01,172.0,0.06112856]
[1748158724393,21.61777461,172.01,172.0,34.86112856]
[1748158727494,21.61777461,172.01,172.0,156.52112856]
[1748158730512,21.61777461,172.01,172.0,73.00112856]
[1748158731422,26.0,172.01,172.0,73.00112856]
[1748158731612,47.61777461,172.01,172.0,34.86112856]
[1748158731804,26.0,172.01,172.0,34.86112856]
[1748158732315,0.14216157,172.04,172.0,34.86112856]
[1748158732524,21.61777461,172.02,172.0,34.86112856]
[1748158734017,21.61777461,172.05,172.0,56.47890317]
[1748158734223,47.61777461,172.05,172.0,56.47890317]
[1748158734427,21.61777461,172.05,172.0,56.47890317]
[1748158735791,26.0,172.02,172.0,34.86112856]
[1748158736608,21.61777461,172.02,172.0,34.86112856]
[1748158737316,26.0,172.01,172.0,34.86112856]
[1748158737520,26.0,172.01,172.0,156.52112856]
[1748158740695,26.0,172.01,172.0,73.00112856]
[1748158742619,26.0,172.01,172.0,34.86112856]
[1748158747506,21.61777461,172.01,172.0,156.52112856]
[1748158747703,21.61777461,172.01,172.0,121.72112856]
[1748158747922,21.61777461,172.01,172.0,156.52112856]
[1748158748229,21.61777461,172.01,172.0,73.00112856]
[1748158749442,21.75993618,172.01,172.0,73.00112856]
[1748158749754,21.75993618,172.01,172.0,34.86112856]
[1748158750308,40.40958504,172.01,172.0,0.06112856]
[1748158750529,40.40958504,172.01,172.0,34.86112856]
[1748158751626,21.61777461,172.01,172.0,34.86112856]
[1748158751826,49.13147461,172.02,172.0,34.86112856]
[1748158752734,21.61777461,172.01,172.0,34.86112856]
[1748158755327,21.75993618,172.01,172.0,0.06112856]
[1748158755523,40.40958504,172.01,172.0,34.86112856]
[1748158757527,40.40958504,172.01,172.0,156.48112856]
[1748158758731,40.40958504,172.01,172.0,156.42]
[1748158760132,40.40958504,172.01,172.0,72.88]
[1748158760513,40.40958504,172.01,172.0,38.08]
[1748158760822,40.40958504,172.01,172.0,72.9]
[1748158764348,52.95401043,171.97,171.89,0.06112856]
[1748158764656,21.61777461,171.9,171.89,0.06112856]
[1748158764832,21.61777461,171.9,171.89,34.88112856]
[1748158765535,47.61777461,171.9,171.89,34.88112856]
[1748158765739,47.75993618,171.9,171.89,34.88112856]
[1748158766305,66.40958504,171.9,171.89,34.88112856]
[1748158766604,72.97878504,171.9,171.89,34.88112856]
[1748158767637,72.97878504,171.9,171.89,156.50112856]
[1748158768917,94.59655965,171.9,171.89,156.50112856]
[1748158770420,68.59655965,171.9,171.89,156.50112856]
[1748158771337,46.97878504,171.9,171.89,156.50112856]
[1748158771641,68.59655965,171.9,171.89,156.50112856]
[1748158772328,205.49655965,171.9,171.89,156.50112856]
[1748158774436,205.49655965,171.9,171.89,156.44]
[1748158775438,222.93183165,171.9,171.89,156.44]
[1748158776028,240.33183165,171.9,171.89,156.44]
[1748158776233,201.31405704,171.9,171.89,156.44]
[1748158776944,136.9,171.9,171.89,156.44]
[1748158777152,0.14216157,171.92,171.89,72.9]
[1748158777330,26.0,171.9,171.89,72.9]
[1748158777530,26.0,171.9,171.89,156.5]
[1748158778344,21.61777461,171.93,171.89,156.5]
[1748158778526,21.61777461,171.94,171.89,178.11777461]
[1748158778726,26.0,171.9,171.89,156.5]
[1748158781029,26.0,171.9,171.89,72.9]
[1748158781950,47.61777461,171.92,171.89,72.9]
[1748158782327,21.61777461,171.91,171.89,34.82]
[1748158782745,26.0,171.88,171.86,21.61777461]
[1748158783045,26.0,171.88,171.87,34.84]
[1748158784047,26.0,171.86,171.83,1.5829]
[1748158784346,26.0,171.85,171.84,34.84]
[1748158787553,26.0,171.85,171.84,157.34]
[1748158788633,26.0,171.88,171.84,178.95777461]
[1748158788953,26.0,171.86,171.84,34.84]
[1748158789337,26.0,171.85,171.84,34.84]
[1748158792660,0.14216157,171.89,171.84,34.84]
[1748158792847,26.0,171.85,171.84,34.84]
[1748158795262,21.61777461,171.86,171.84,34.84]
[1748158795936,26.0,171.87,171.84,34.84]
[1748158795937,21.61777461,171.85,171.84,34.84]
[1748158796161,21.61777461,171.86,171.84,34.84]
[1748158796763,21.61777461,171.85,171.84,34.84]
[1748158797545,21.61777461,171.85,171.84,157.34]
[1748158797749,21.61777461,171.86,171.84,157.34]
[1748158798437,21.61777461,171.86,171.85,34.84]
[1748158801174,26.0,171.87,171.85,34.84]
[1748158801350,21.61777461,171.87,171.85,34.84]
[1748158801549,0.14216157,171.89,171.85,34.84]
[1748158801868,21.61777461,171.87,171.85,34.84]
[1748158802192,21.61777461,171.86,171.85,34.84]
[1748158804354,26.0,171.83,171.76,0.06112856]
[1748158804577,21.75993618,171.86,171.76,0.06112856]
[1748158804578,26.0,171.77,171.76,0.06112856]
[1748158804871,26.0,171.77,171.76,34.90112856]
[1748158806665,21.61777461,171.81,171.76,34.90112856]
[1748158806848,26.0,171.78,171.76,34.90112856]
[1748158807355,21.61777461,171.86,171.77,21.61777461]
[1748158807555,21.61777461,171.86,171.8,21.61777461]
[1748158807773,21.61777459,171.86,171.81,56.45777461]
[1748158807965,26.0,171.83,171.81,56.45777461]
[1748158808171,26.0,171.83,171.81,34.84]
[1748158808373,26.0,171.82,171.81,34.84]
[1748158810180,21.61777461,171.83,171.81,34.84]
[1748158810346,21.61777461,171.82,171.76,0.06112856]
[1748158810675,26.0,171.78,171.77,34.84]
[1748158811666,26.0,171.77,171.76,0.06112856]
[1748158811875,26.0,171.77,171.76,34.90112856]
[1748158814593,27.72396157,171.83,171.76,34.90112856]
[1748158814763,47.61777461,171.81,171.76,56.51890317]
[1748158814957,26.0,171.79,171.76,56.51890317]
[1748158817216,47.61777461,171.81,171.76,56.51890317]
[1748158817379,26.0,171.77,171.76,34.90112856]
[1748158817580,26.0,171.77,171.76,156.84112856]
[1748158821575,26.0,171.77,171.76,73.22112856]
[1748158821775,26.0,171.77,171.76,34.92112856]
[1748158822464,1.72396157,171.83,171.76,34.92112856]
[1748158822465,0.14216157,171.8,171.76,34.92112856]
[1748158822660,26.0,171.79,171.76,34.92112856]
[1748158822879,26.0,171.79,171.76,56.53890317]
[1748158823274,0.14216157,171.82,171.76,34.92112856]
[1748158823275,26.0,171.77,171.76,34.92112856]
[1748158827492,26.0,171.77,171.76,156.88112856]
[1748158829701,26.0,171.77,171.76,34.92112856]
[1748158830707,26.0,171.8,171.76,34.92112856]
[1748158830874,47.61777461,171.8,171.76,34.92112856]
[1748158831912,26.0,171.77,171.76,34.92112856]
[1748158834119,21.61777461,171.78,171.76,0.06112856]
[1748158834294,21.61777461,171.77,171.76,0.06112856]
[1748158834601,26.0,171.77,171.76,34.92112856]
[1748158836087,47.61777461,171.79,171.76,34.92112856]
[1748158836281,26.0,171.77,171.76,34.92112856]
[1748158837575,26.0,171.77,171.76,156.88112856]
[1748158842294,26.0,171.77,171.76,34.92112856]
[1748158843023,26.0,171.79,171.76,34.92112856]
[1748158843319,26.0,171.77,171.76,34.92112856]
[1748158844430,26.0,171.77,171.76,0.06112856]
[1748158844719,26.0,171.77,171.76,34.92112856]
[1748158844887,26.0,171.77,171.76,0.06112856]
[1748158845087,26.0,171.77,171.76,34.92112856]
[1748158847009,21.61777461,171.78,171.76,34.92112856]
[1748158847587,21.61777461,171.78,171.77,121.92]
[1748158847787,47.61777461,171.79,171.77,121.92]
[1748158849401,26.0,171.78,171.77,121.92]
[1748158850096,26.0,171.78,171.77,38.28]
[1748158850300,26.0,171.79,171.77,38.28]
[1748158850483,26.0,171.78,171.77,38.28]
[1748158851815,47.61777461,171.79,171.77,38.28]
[1748158852022,21.61777461,171.79,171.77,38.28]
[1748158853318,26.0,171.79,171.76,56.53890317]
[1748158853517,26.0,171.79,171.77,21.61777461]
[1748158853717,26.0,171.79,171.76,56.53890317]
[1748158855221,26.0,171.78,171.76,56.53890317]
[1748158857720,26.0,171.78,171.77,121.92]
[1748158857903,26.0,171.78,171.77,38.28]
[1748158859612,26.0,171.78,171.76,56.53890317]
[1748158862263,26.0,171.78,171.76,34.92112856]
[1748158862416,21.61777461,171.78,171.77,34.86]
[1748158863627,0.14216157,171.8,171.77,34.86]
[1748158863929,21.61777461,171.78,171.76,0.06112856]
[1748158864106,44.64964886,171.81,171.77,34.86]
[1748158864307,21.75993618,171.78,171.77,34.86]
[1748158867013,21.75993618,171.78,171.76,0.06112856]
[1748158867210,21.75993618,171.78,171.77,34.86]
[1748158867411,0.14216157,171.78,171.77,34.86]
[1748158867612,0.14216157,171.78,171.77,156.78]
[1748158867613,21.75993618,171.78,171.77,156.78]
[1748158868738,0.14216157,171.78,171.77,156.78]
[1748158869138,21.75993618,171.78,171.77,156.78]
[1748158871121,0.14216157,171.78,171.77,156.78]
[1748158871318,40.40958504,171.78,171.77,156.78]
[1748158871535,40.40958504,171.78,171.76,0.06112856]
[1748158871536,0.14216157,171.77,171.76,0.06112856]
[1748158871711,21.75993618,171.77,171.76,34.92112856]
[1748158873236,0.14216157,171.77,171.76,34.92112856]
[1748158873410,40.40958504,171.77,171.76,34.92112856]
[1748158873610,14.03813926,171.77,171.76,34.92112856]
[1748158874037,14.03813926,171.77,171.76,0.06112856]
[1748158874237,14.03813926,171.77,171.76,34.92112856]
[1748158874735,14.03813926,171.77,171.59,1.6005]
[1748158874736,44.79181043,171.73,171.59,1.6005]
[1748158874941,26.0,171.65,171.62,13.89597769]
[1748158875432,26.0,171.65,171.61,13.89597769]
[1748158875616,26.0,171.65,171.61,21.73082506]
[1748158875821,26.0,171.64,171.6,34.86]
[1748158876124,26.0,171.64,171.6,56.59082506]
[1748158877747,26.0,171.64,171.61,122.0]
[1748158879547,26.0,171.64,171.61,143.73082506]
[1748158880045,26.0,171.64,171.61,21.73082506]
[1748158881141,26.0,171.64,171.6,34.86]
[1748158881329,26.0,171.64,171.61,21.73082506]
[1748158882346,26.0,171.65,171.63,21.73082506]
[1748158882642,26.0,171.65,171.64,34.86]
[1748158883647,26.0,171.67,171.64,34.86]
[1748158883951,26.0,171.65,171.64,34.86]
[1748158884446,26.0,171.68,171.64,56.59082506]
[1748158884782,7.7593,171.71,171.65,21.73082506]
[1748158884783,26.0,171.67,171.65,21.73082506]
[1748158884947,26.0,171.67,171.64,34.86]
[1748158885245,26.0,171.67,171.64,56.59082506]
[1748158885418,26.0,171.67,171.65,21.73082506]
[1748158885825,26.0,171.7,171.65,21.73082506]
[1748158886040,47.73082506,171.7,171.65,21.73082506]
[1748158886221,47.73082506,171.7,171.64,34.86]
[1748158886418,21.73082506,171.68,171.65,34.88]
[1748158887036,0.14216157,171.69,171.65,34.88]
[1748158887348,21.73082506,171.68,171.65,34.88]
[1748158887554,21.73082506,171.68,171.66,122.04]
[1748158889669,21.73082506,171.68,171.66,38.36]
[1748158890346,26.0,171.67,171.66,38.36]
[1748158892564,0.14216157,171.69,171.66,38.36]
[1748158892876,26.0,171.66,171.65,34.88]
[1748158894791,26.0,171.69,171.65,34.88]
[1748158894977,47.73082506,171.69,171.65,34.88]
[1748158897458,47.73082506,171.69,171.66,122.04]
[1748158899873,26.0,171.69,171.66,122.04]
[1748158900078,26.0,171.67,171.66,122.04]
[1748158900398,26.0,171.67,171.65,34.88]
[1748158900689,26.0,171.66,171.65,34.88]
[1748158901979,27.646,171.71,171.65,56.61082506]
[1748158902273,26.0,171.69,171.67,21.73082506]
[1748158902582,26.0,171.69,171.58,18.64964886]
[1748158902583,26.0,171.65,171.53,1.6581]
[1748158902885,26.0,171.61,171.57,21.73082506]
[1748158903179,26.0,171.61,171.58,56.61082506]
[1748158904384,26.0,171.61,171.59,21.73082506]
[1748158905374,26.0,171.61,171.6,34.88]
[1748158906394,26.0,171.65,171.6,34.88]
[1748158906602,26.0,171.61,171.6,34.88]
[1748158907478,26.0,171.61,171.6,156.86]
[1748158908689,21.73082506,171.63,171.6,121.98]
[1748158908872,21.73082506,171.63,171.61,34.88]
[1748158909077,21.73082506,171.63,171.6,38.28]
[1748158909282,21.73082506,171.63,171.47,10.0]
[1748158909283,26.0,171.58,171.47,6.0364]
[1748158909483,26.0,171.56,171.53,21.73082506]
[1748158909687,26.0,171.56,171.54,56.61082506]
[1748158910097,26.0,171.57,171.54,56.61082506]
[1748158912201,26.0,171.57,171.55,21.73082506]
[1748158912424,26.0,171.57,171.54,34.88]
[1748158912425,26.0,171.58,171.56,21.73082506]
[1748158912579,0.14216157,171.66,171.57,56.61082506]
[1748158912771,26.0,171.64,171.61,21.73082506]
[1748158912974,26.0,171.64,171.62,34.88]
[1748158913397,1.6419,171.67,171.63,21.73082506]
[1748158913775,26.0,171.65,171.63,21.73082506]
[1748158914189,26.0,171.66,171.63,21.73082506]
[1748158914826,26.0,171.68,171.63,21.73082506]
[1748158915104,26.0,171.66,171.64,21.73082506]
[1748158915401,26.0,171.66,171.65,34.88]
[1748158916205,26.0,171.67,171.65,34.88]
[1748158916406,26.0,171.66,171.65,34.88]
[1748158917705,26.0,171.66,171.65,156.86]
[1748158919496,26.0,171.67,171.65,156.86]
[1748158920282,26.0,171.66,171.65,156.86]
[1748158920488,26.0,171.66,171.65,34.88]
[1748158921601,26.0,171.67,171.65,34.88]
[1748158921784,26.0,171.67,171.57,84.5004]
[1748158921785,47.73082506,171.67,171.66,34.88]
[1748158923785,26.0,171.67,171.66,34.88]
[1748158924283,47.73082506,171.67,171.66,34.88]
[1748158924603,26.0,171.67,171.66,34.88]
[1748158925104,21.73082506,171.68,171.66,34.88]
[1748158925904,0.14216157,171.7,171.66,34.88]
[1748158926115,26.0,171.68,171.66,34.88]
[1748158926313,1.6419,171.71,171.66,56.61082506]
[1748158926515,26.0,171.68,171.66,56.61082506]
[1748158927206,26.0,171.69,171.67,21.73082506]
[1748158927707,26.0,171.69,171.68,121.98]
[1748158928200,21.73082506,171.72,171.68,121.98]
[1748158928404,21.73082506,171.73,171.69,34.88]
[1748158928627,26.0,171.7,171.69,34.88]
[1748158929122,21.73082506,171.73,171.69,34.88]
[1748158929298,26.0,171.7,171.69,34.88]
[1748158930205,26.0,171.71,171.69,56.61082506]
[1748158930611,26.0,171.71,171.7,21.73082506]
[1748158930813,26.0,171.72,171.7,21.73082506]
[1748158931004,26.0,171.71,171.69,56.61082506]
[1748158932917,26.0,171.7,171.69,34.88]
[1748158933800,1.5232,171.75,171.66,21.73082506]
[1748158933801,26.0,171.73,171.66,21.73082506]
[1748158934001,26.0,171.68,171.67,34.88]
[1748158935026,26.0,171.69,171.67,56.61082506]
[1748158935322,26.0,171.69,171.67,34.88]
[1748158935509,26.0,171.69,171.67,56.61082506]
[1748158936224,26.0,171.73,171.67,56.61082506]
[1748158936530,26.0,171.69,171.67,56.61082506]
[1748158937529,26.0,171.69,171.68,121.84]
[1748158937914,47.73082506,171.73,171.68,121.84]
[1748158938620,26.0,171.73,171.69,21.73082506]
[1748158938827,26.0,171.71,171.7,34.88]
[1748158942726,143.37616157,171.76,171.7,34.88]
[1748158942727,26.0,171.73,171.7,56.61082506]
[1748158942905,21.73082506,171.71,171.66,21.73082506]
[1748158943109,26.0,171.68,171.67,34.88]
[1748158943303,26.0,171.67,171.64,21.73082506]
[1748158943546,26.0,171.67,171.65,34.88]
[1748158944033,26.0,171.67,171.66,34.88]
[1748158946232,26.0,171.68,171.66,56.61082506]
[1748158946733,26.0,171.69,171.67,34.88]
[1748158946932,26.0,171.69,171.67,56.61082506]
[1748158947614,26.0,171.69,171.68,121.84]
[1748158947813,23.24272506,171.72,171.68,121.84]
[1748158947814,26.0,171.7,171.68,121.84]
[1748158948034,26.0,171.69,171.68,121.84]
[1748158950635,21.73082506,171.69,171.67,34.88]
[1748158950803,21.73082506,171.68,171.67,34.88]
[1748158951507,26.0,171.65,171.6,21.73082506]
[1748158951707,26.0,171.65,171.64,21.73082506]
[1748158951924,26.0,171.69,171.64,56.61082506]
[1748158955137,26.0,171.7,171.67,21.73082506]
[1748158955346,26.0,171.7,171.68,34.88]
[1748158955640,26.0,171.69,171.68,34.88]
[1748158957627,26.0,171.69,171.68,156.72]
[1748158959539,26.0,171.69,171.68,73.04]
[1748158962644,26.0,171.69,171.68,34.88]
[1748158967550,26.0,171.69,171.68,156.7]
[1748158967752,26.0,171.7,171.68,156.7]
[1748158968130,26.0,171.7,171.68,73.02]
[1748158968943,26.0,171.72,171.68,94.75082506]
[1748158969141,26.0,171.7,171.68,94.75082506]
[1748158969343,26.0,171.7,171.68,73.02]
[1748158970751,47.73082506,171.72,171.68,73.02]
[1748158970940,26.0,171.69,171.68,34.88]
[1748158972761,26.0,171.72,171.68,34.88]
[1748158972944,47.73082506,171.72,171.68,34.88]
[1748158974353,26.0,171.7,171.68,34.88]
[1748158974659,26.0,171.71,171.69,21.73082506]
[1748158977471,26.0,171.71,171.7,83.68]
[1748158977766,26.0,171.71,171.7,121.82]
[1748158979972,26.0,171.69,171.68,34.88]
[1748158980268,26.0,171.67,171.63,82.9]
[1748158980469,26.0,171.66,171.64,56.61082506]
[1748158981041,26.0,171.66,171.65,34.88]
[1748158982261,26.0,171.66,171.63,21.73082506]
[1748158982473,26.0,171.66,171.64,34.88]
[1748158983153,26.0,171.66,171.65,34.88]
[1748158985677,26.0,171.69,171.65,56.61082506]
[1748158985849,1.633,171.75,171.68,21.73082506]
[1748158986046,26.0,171.73,171.72,21.73082506]
[1748158986355,0.14216157,171.79,171.72,56.61082506]
[1748158986549,0.14216157,171.79,171.74,21.73082506]
[1748158986550,21.73082506,171.79,171.74,21.73082506]
[1748158986761,21.73082506,171.79,171.75,34.88]
[1748158986762,26.0,171.76,171.75,34.88]
[1748158986961,21.73082506,171.79,171.75,34.88]
[1748158987364,26.0,171.76,171.75,34.88]
[1748158987667,26.0,171.76,171.75,156.7]
[1748158988874,26.0,171.78,171.75,156.7]
[1748158989178,47.73082506,171.78,171.75,156.7]
[1748158989480,26.0,171.76,171.75,156.7]
[1748158989877,26.0,171.76,171.75,73.02]
[1748158990689,1.633,171.8,171.75,34.88]
[1748158990858,26.0,171.76,171.75,34.88]
[1748158991178,1.633,171.8,171.75,56.61082506]
[1748158991350,26.0,171.78,171.76,21.73082506]
[1748158991959,29.67551063,171.84,171.77,21.73082506]
[1748158992179,23.35852506,171.84,171.78,56.59082506]
[1748158992346,26.0,171.81,171.79,34.86]
[1748158992858,23.35852506,171.84,171.79,34.86]
[1748158993373,26.0,171.81,171.79,34.86]
[1748158993574,26.0,171.8,171.79,34.86]
[1748158994661,26.0,171.82,171.79,34.86]
[1748158994972,26.0,171.8,171.79,34.86]
[1748158996877,26.0,171.81,171.79,56.59082506]
[1748158997580,23.35852506,171.84,171.8,121.72]
[1748158997753,1.6277,171.84,171.8,143.45082506]
[1748158998363,1.6277,171.84,171.8,121.72]
[1748158999883,1.6277,171.84,171.8,38.08]
[1748159000087,26.0,171.85,171.8,59.81082506]
[1748159000384,26.0,171.83,171.82,21.73082506]
[1748159000681,26.0,171.83,171.82,56.59082506]
[1748159001179,29.58012506,171.88,171.82,56.59082506]
[1748159001561,26.0,171.85,171.82,56.59082506]
[1748159003004,26.0,171.85,171.82,34.86]
[1748159003286,26.0,171.83,171.82,34.86]
[1748159005361,26.0,171.84,171.82,56.59082506]